bitfinex/quotes_BTCUSD_20250723
["timestamp","ask_amount","ask_price","bid_price","bid_amount"]
[1753244530128,0.2319388,118890.0,118880.0,0.95403365]
[1753244530560,0.2317988,118890.0,118880.0,0.95403365]
[1753244531654,0.2317988,118890.0,118880.0,0.67116]
[1753244531831,0.2319388,118890.0,118880.0,0.67116]
[1753244532049,0.33386512,118890.0,118880.0,0.67132]
[1753244532460,0.33386512,118890.0,118880.0,0.46956]
[1753244533995,0.33386512,118890.0,118880.0,0.34]
[1753244534430,0.33386512,118890.0,118880.0,0.46952]
[1753244534844,0.33386512,118890.0,118880.0,0.12952]
[1753244535051,0.33286512,118890.0,118880.0,0.12952]
[1753244535453,0.33486512,118890.0,118880.0,0.12952]
[1753244536088,0.73486512,118890.0,118880.0,0.12952]
[1753244536379,0.73286512,118890.0,118880.0,0.12952]
[1753244536773,0.73586512,118890.0,118880.0,0.12952]
[1753244537186,0.18507562,118870.0,118860.0,0.28587365]
[1753244537360,0.23230562,118870.0,118860.0,0.47244]
[1753244538023,0.33437194,118870.0,118860.0,0.47244]
[1753244538431,0.33437194,118870.0,118860.0,0.47344]
[1753244539056,0.33437194,118870.0,118860.0,0.345]
[1753244539264,0.33437194,118870.0,118860.0,0.4744]
[1753244539474,0.33437194,118870.0,118860.0,0.4734]
[1753244539923,0.33637194,118870.0,118860.0,0.4734]
[1753244540139,0.61924559,118870.0,118860.0,0.4734]
[1753244540566,0.61924559,118870.0,118860.0,0.1334]
[1753244542084,0.33637194,118870.0,118860.0,0.1334]
[1753244542313,0.61924559,118870.0,118860.0,0.1334]
[1753244542955,0.33637194,118870.0,118860.0,0.1334]
[1753244543164,0.61924559,118870.0,118860.0,0.1334]
[1753244543387,0.61924559,118870.0,118860.0,0.1324]
[1753244543600,0.61924559,118870.0,118860.0,0.1334]
[1753244543814,0.61924559,118870.0,118860.0,0.004]
[1753244544023,0.61924559,118870.0,118860.0,1e-08]
[1753244544024,0.69799512,118870.0,118860.0,1e-08]
[1753244544472,0.23140677,118850.0,118840.0,0.003]
[1753244544704,0.59898772,118850.0,118840.0,0.13236]
[1753244545126,0.59912772,118850.0,118840.0,0.13236]
[1753244545784,0.60112772,118850.0,118840.0,0.13248424]
[1753244546434,0.31825407,118850.0,118840.0,0.13248424]
[1753244547316,0.61857674,118850.0,118840.0,0.13248424]
[1753244547534,0.62157674,118850.0,118840.0,0.13248424]
[1753244547962,0.7005622,118850.0,118840.0,0.13248424]
[1753244548147,0.62157674,118850.0,118840.0,0.13248424]
[1753244548621,0.62157674,118850.0,118840.0,0.00312424]
[1753244548833,0.75930187,118850.0,118840.0,1e-08]
[1753244549464,0.78441785,118850.0,118840.0,1e-08]
[1753244549684,0.85599337,118850.0,118840.0,1e-08]
[1753244549929,0.78441785,118850.0,118840.0,1e-08]
[1753244550146,0.78241785,118850.0,118840.0,1e-08]
[1753244550362,0.77941785,118850.0,118840.0,1e-08]
[1753244550588,0.78141785,118850.0,118840.0,1e-08]
[1753244550804,0.5870215,118850.0,118840.0,1e-08]
[1753244551034,0.5850215,118850.0,118840.0,1e-08]
[1753244551478,0.5880215,118850.0,118840.0,0.00100001]
[1753244551624,0.5880215,118850.0,118840.0,1e-08]
[1753244551826,0.87089515,118850.0,118840.0,1e-08]
[1753244552023,0.5880215,118850.0,118840.0,1e-08]
[1753244552230,0.87089515,118850.0,118840.0,1e-08]
[1753244552841,0.78641785,118850.0,118840.0,1e-08]
[1753244555737,0.65705785,118850.0,118840.0,1e-08]
[1753244555959,0.5035642,118850.0,118840.0,1e-08]
[1753244556173,0.65705785,118850.0,118840.0,1e-08]
[1753244558935,0.3741842,118850.0,118840.0,1e-08]
[1753244559150,0.65705785,118850.0,118840.0,1e-08]
[1753244559554,0.3741842,118850.0,118840.0,1e-08]
[1753244559792,0.65705785,118850.0,118840.0,1e-08]
[1753244560615,0.74139515,118850.0,118840.0,1e-08]
[1753244563805,0.65691785,118850.0,118840.0,1e-08]
[1753244564905,0.3740442,118850.0,118840.0,1e-08]
[1753244565127,0.65691785,118850.0,118840.0,1e-08]
[1753244566378,0.78623785,118850.0,118840.0,1e-08]
[1753244568403,0.65691785,118850.0,118840.0,1e-08]
[1753244569418,0.73783222,118850.0,118840.0,1e-08]
[1753244569719,0.30262822,118850.0,118840.0,0.00527001]
[1753244569954,0.30239822,118850.0,118840.0,0.02917001]
[1753244570507,0.58527187,118850.0,118840.0,0.02917001]
[1753244571442,0.58527187,118850.0,118840.0,0.00527001]
[1753244572885,0.58550187,118850.0,118840.0,0.00527001]
[1753244575810,0.58550187,118850.0,118840.0,0.00318001]
[1753244578616,0.58550187,118850.0,118840.0,0.00519001]
[1753244581487,0.30262822,118850.0,118840.0,0.00519001]
[1753244581709,0.58550187,118850.0,118840.0,0.00519001]
[1753244581922,0.61030664,118850.0,118840.0,0.00519001]
[1753244582344,0.61030664,118850.0,118840.0,0.02889001]
[1753244582552,0.61030664,118850.0,118840.0,0.00519001]
[1753244583549,0.65540664,118850.0,118840.0,1e-08]
[1753244583938,0.67114444,118850.0,118840.0,1e-08]
[1753244584149,0.65540664,118850.0,118840.0,1e-08]
[1753244585847,0.63250664,118850.0,118840.0,1e-08]
[1753244586263,1.03250664,118850.0,118840.0,1e-08]
[1753244586991,1.0902969,118850.0,118840.0,1e-08]
[1753244587216,1.23510927,118850.0,118840.0,1e-08]
[1753244588567,1.51798292,118850.0,118840.0,1e-08]
[1753244588803,1.54323892,118850.0,118840.0,1e-08]
[1753244589565,1.26036527,118850.0,118840.0,1e-08]
[1753244589805,1.22657501,118850.0,118840.0,1e-08]
[1753244590589,1.21084264,118850.0,118840.0,1e-08]
[1753244591035,1.21098264,118850.0,118840.0,1e-08]
[1753244591706,1.22670291,118850.0,118840.0,1e-08]
[1753244592347,1.21098264,118850.0,118840.0,1e-08]
[1753244592570,1.29545994,118850.0,118840.0,1e-08]
[1753244598627,1.38394994,118850.0,118840.0,1e-08]
[1753244598854,1.29545994,118850.0,118840.0,1e-08]
[1753244599521,1.62833359,118850.0,118840.0,1e-08]
[1753244600877,0.22488694,118830.0,118820.0,0.003]
[1753244601094,0.76292721,118830.0,118820.0,0.003]
[1753244601324,0.78605721,118830.0,118820.0,0.003]
[1753244602023,0.74458789,118830.0,118820.0,0.003]
[1753244602245,0.2026181,118810.0,118800.0,0.05368]
[1753244602468,0.56996905,118810.0,118800.0,0.03169]
[1753244603173,0.57019905,118810.0,118800.0,0.003]
[1753244603610,0.57032302,118810.0,118800.0,0.003]
[1753244604038,0.70010032,118810.0,118800.0,0.003]
[1753244604344,0.70010032,118810.0,118800.0,1e-08]
[1753244604345,0.70110032,118810.0,118800.0,1e-08]
[1753244604585,0.70210032,118810.0,118800.0,1e-08]
[1753244604811,0.74684302,118810.0,118800.0,1e-08]
[1753244605257,0.20264929,118790.0,118780.0,0.05104]
[1753244605518,0.57000024,118790.0,118780.0,0.0532]
[1753244605798,0.57023024,118790.0,118780.0,0.02864]
[1753244606021,0.57023024,118790.0,118780.0,0.0308]
[1753244606233,0.57000024,118790.0,118780.0,0.0548]
[1753244607138,0.57000024,118790.0,118780.0,0.0308]
[1753244607363,0.57100024,118790.0,118780.0,0.0534]
[1753244607592,0.57200024,118790.0,118780.0,0.0564]
[1753244608564,0.70370754,118790.0,118780.0,0.006]
[1753244608785,0.61923024,118790.0,118780.0,0.006]
[1753244609000,0.59593024,118790.0,118780.0,0.006]
[1753244609201,0.57223024,118790.0,118780.0,0.006]
[1753244609454,0.70131024,118790.0,118780.0,0.006]
[1753244609681,0.83238754,118790.0,118780.0,0.006]
[1753244610133,0.80978754,118790.0,118780.0,0.006]
[1753244610369,0.68070754,118790.0,118780.0,0.006]
[1753244610586,0.83142754,118790.0,118780.0,0.003]
[1753244610830,0.84068863,118790.0,118780.0,0.005]
[1753244611020,0.75621133,118790.0,118780.0,0.005]
[1753244611223,0.45073768,118790.0,118780.0,0.005]
[1753244611430,0.70961133,118790.0,118780.0,0.005]
[1753244611642,0.57949133,118790.0,118780.0,0.005]
[1753244611860,0.70861133,118790.0,118780.0,0.005]
[1753244612936,0.70961133,118790.0,118780.0,0.006]
[1753244613363,0.70961133,118790.0,118780.0,0.00924]
[1753244614226,0.83599435,118790.0,118780.0,1e-08]
[1753244614465,0.83613435,118790.0,118780.0,1e-08]
[1753244614689,0.75595133,118790.0,118780.0,1e-08]
[1753244614901,0.75581133,118790.0,118780.0,1e-08]
[1753244615589,0.75595133,118790.0,118780.0,1e-08]
[1753244616247,0.78122033,118790.0,118780.0,1e-08]
[1753244616896,0.20268048,118770.0,118760.0,0.03014]
[1753244617114,0.28715778,118770.0,118760.0,0.0323]
[1753244617325,0.57003143,118770.0,118760.0,0.0546]
[1753244617757,0.57026143,118770.0,118760.0,0.0323]
[1753244618192,0.57103143,118770.0,118760.0,0.03379265]
[1753244618472,0.57103143,118770.0,118760.0,0.05819265]
[1753244619443,0.57103143,118770.0,118760.0,0.05919265]
[1753244619659,0.57203143,118770.0,118760.0,0.05919265]
[1753244620559,0.57203143,118770.0,118760.0,0.03479265]
[1753244621625,0.57203143,118770.0,118760.0,0.05839265]
[1753244623943,0.57203143,118770.0,118760.0,0.03479265]
[1753244624612,0.57203143,118770.0,118760.0,0.05849265]
[1753244627652,0.28915778,118770.0,118760.0,0.05849265]
[1753244627882,0.27170876,118770.0,118760.0,0.05849265]
[1753244628109,0.18723146,118770.0,118760.0,0.3413663]
[1753244628332,0.20468048,118770.0,118760.0,0.3413663]
[1753244628551,0.18723146,118770.0,118760.0,0.3413663]
[1753244628989,0.20468048,118770.0,118760.0,0.3413663]
[1753244629209,0.18723146,118770.0,118760.0,0.3413663]
[1753244629649,0.20468048,118770.0,118760.0,0.3413663]
[1753244630321,0.20468048,118770.0,118760.0,0.87503333]
[1753244630322,0.01883834,118770.0,118760.0,0.87503333]
[1753244630537,0.02725783,118770.0,118760.0,0.87503333]
[1753244630761,0.20407015,118770.0,118760.0,0.86661349]
[1753244630988,0.20407015,118770.0,118760.0,1.0041534]
[1753244631255,0.02725783,118770.0,118760.0,1.01257324]
[1753244631471,0.02625776,118770.0,118760.0,1.01157324]
[1753244631686,0.02725776,118770.0,118760.0,1.01757324]
[1753244631904,0.01883834,118770.0,118760.0,1.01757324]
[1753244632089,0.01783834,118770.0,118760.0,1.01657324]
[1753244632309,0.02625769,118770.0,118760.0,1.01657324]
[1753244632551,0.01883834,118770.0,118760.0,1.01757324]
[1753244632760,0.02725776,118770.0,118760.0,1.01757324]
[1753244632975,0.02625776,118770.0,118760.0,1.01657324]
[1753244633193,0.02725776,118770.0,118760.0,1.01857324]
[1753244633856,0.002,118770.0,118760.0,1.01857324]
[1753244634066,0.01883819,118770.0,118760.0,1.01857324]
[1753244634280,0.20406951,118770.0,118760.0,1.00173349]
[1753244634490,0.20406951,118770.0,118760.0,1.01015333]
[1753244634809,0.03567675,118770.0,118760.0,1.01015333]
[1753244635652,0.2124895,118770.0,118760.0,1.00173349]
[1753244635852,0.20407044,118770.0,118760.0,1.0101534]
[1753244636098,0.21249007,118770.0,118760.0,1.0101534]
[1753244636319,0.20407079,118770.0,118760.0,1.00173349]
[1753244636642,0.0356781,118770.0,118760.0,1.01015333]
[1753244636859,0.01883862,118770.0,118760.0,1.01015333]
[1753244637489,0.02725811,118770.0,118760.0,1.01015333]
[1753244637741,0.01883819,118770.0,118760.0,1.01015333]
[1753244638621,0.01041899,118770.0,118760.0,1.01015333]
[1753244638842,0.01883812,118770.0,118760.0,1.01015333]
[1753244639447,0.002,118770.0,118760.0,1.01015333]
[1753244639674,0.002,118770.0,118760.0,1.29302698]
[1753244639894,0.002,118770.0,118760.0,1.37750428]
[1753244640125,0.01041906,118770.0,118760.0,1.37750428]
[1753244640349,0.03567696,118770.0,118760.0,1.01015333]
[1753244640789,0.03567696,118770.0,118760.0,1.01857331]
[1753244641004,0.02725747,118770.0,118760.0,1.01857331]
[1753244641239,0.01041906,118770.0,118760.0,1.01857331]
[1753244641996,0.01883834,118770.0,118760.0,0.73569966]
[1753244642230,0.03567739,118770.0,118760.0,0.73569966]
[1753244642450,0.01883826,118770.0,118760.0,0.88945331]
[1753244642666,0.20406972,118770.0,118760.0,0.72727982]
[1753244642883,0.20406972,118770.0,118760.0,1.01015347]
[1753244643098,0.03567703,118770.0,118760.0,1.01857331]
[1753244643527,0.04409666,118770.0,118760.0,1.01015347]
[1753244643756,0.19565109,118770.0,118760.0,0.85577317]
[1753244644011,0.19565109,118770.0,118760.0,1.00169378]
[1753244644230,0.19565109,118770.0,118760.0,1.01011391]
[1753244644881,0.19565109,118770.0,118760.0,1.01853396]
[1753244645555,0.19565109,118770.0,118760.0,1.02695337]
[1753244645995,0.19565109,118770.0,118760.0,0.73565988]
[1753244646206,0.19565109,118770.0,118760.0,1.01853353]
[1753244646705,0.0272584,118770.0,118760.0,1.02695337]
[1753244646921,0.01883877,118770.0,118760.0,1.02695337]
[1753244648098,0.18723146,118770.0,118760.0,1.00169357]
[1753244648345,0.19565109,118770.0,118760.0,0.98485317]
[1753244648563,0.19565109,118770.0,118760.0,1.0016935]
[1753244648754,0.19565109,118770.0,118760.0,1.01853339]
[1753244648984,0.18723181,118770.0,118760.0,0.40449265]
[1753244649262,0.18723181,118770.0,118760.0,0.8164463]
[1753244650137,0.18723181,118770.0,118760.0,0.53357265]
[1753244650358,0.20491083,118770.0,118760.0,0.35729265]
[1753244650606,0.20491083,118770.0,118760.0,0.14637265]
[1753244650817,0.20491083,118770.0,118760.0,0.48637265]
[1753244651926,0.28938813,118770.0,118760.0,0.48637265]
[1753244652348,0.28938813,118770.0,118760.0,0.48421265]
[1753244652964,0.33388813,118770.0,118760.0,0.47821265]
[1753244653160,0.28838813,118770.0,118760.0,0.47821265]
[1753244653413,0.28838813,118770.0,118760.0,0.48021265]
[1753244653623,0.28838813,118770.0,118760.0,0.48235265]
[1753244654887,0.68938813,118770.0,118760.0,0.48435265]
[1753244656283,0.28915813,118770.0,118760.0,0.48435265]
[1753244662840,0.28585643,118770.0,118760.0,0.48435265]
[1753244665959,0.28073864,118770.0,118760.0,0.50785265]
[1753244666556,0.28073864,118770.0,118760.0,0.48435265]
[1753244667215,0.28073864,118770.0,118760.0,0.48491265]
[1753244667404,0.28073864,118770.0,118760.0,0.50491265]
[1753244668879,0.68073864,118770.0,118760.0,0.50491265]
[1753244669017,0.28073864,118770.0,118760.0,0.50491265]
[1753244669238,0.28073864,118770.0,118760.0,0.52791265]
[1753244675096,0.19626134,118770.0,118760.0,0.8336863]
[1753244676631,0.01944902,118770.0,118760.0,0.84210664]
[1753244676775,0.01944902,118770.0,118760.0,1.01893371]
[1753244676967,0.002,118770.0,118760.0,1.31864725]
[1753244677189,0.00209743,118800.0,118790.0,0.2459362]
[1753244677429,0.01979414,118810.0,118800.0,0.24072182]
[1753244677430,0.08957473,118810.0,118800.0,0.24072182]
[1753244677644,0.003,118810.0,118800.0,0.99522547]
[1753244678742,0.003,118810.0,118800.0,1.28720319]
[1753244678944,0.003,118810.0,118800.0,1.37168049]
[1753244680597,0.004,118810.0,118800.0,1.37468049]
[1753244681226,0.005,118810.0,118800.0,1.37568049]
[1753244681617,0.004,118810.0,118800.0,1.37468049]
[1753244681999,0.005,118810.0,118800.0,1.37768049]
[1753244688744,0.01341616,118810.0,118800.0,1.37768049]
[1753244688928,0.005,118810.0,118800.0,1.37768049]
[1753244689571,0.01341616,118810.0,118800.0,1.37768049]
[1753244689786,0.02183253,118810.0,118800.0,1.37768049]
[1753244689999,0.02183253,118810.0,118800.0,0.72793589]
[1753244690000,0.03866569,118810.0,118800.0,0.72793589]
[1753244690206,0.04708241,118810.0,118800.0,1.01080954]
[1753244690620,0.02183253,118810.0,118800.0,1.01080954]
[1753244691524,0.02183246,118810.0,118800.0,1.01080954]
[1753244691731,0.02183246,118810.0,118800.0,1.29368319]
[1753244691939,0.03024883,118810.0,118800.0,1.29368319]
[1753244692143,0.02183246,118810.0,118800.0,1.29368319]
[1753244692391,0.01341616,118810.0,118800.0,1.29368319]
[1753244692858,0.02183246,118810.0,118800.0,1.29368319]
[1753244693277,0.005,118810.0,118800.0,1.29368319]
[1753244695882,0.005,118810.0,118800.0,1.16372319]
[1753244696068,0.005,118810.0,118800.0,1.49652319]
[1753244698521,0.005,118810.0,118800.0,1.49636319]
[1753244701419,0.02132517,118820.0,118810.0,0.23728552]
[1753244701638,0.02132517,118820.0,118810.0,0.63393917]
[1753244701849,0.02974104,118820.0,118810.0,0.63393917]
[1753244702577,0.01390944,118820.0,118810.0,0.63793917]
[1753244702814,0.02232517,118820.0,118810.0,0.65933917]
[1753244703024,0.01390944,118820.0,118810.0,0.65933917]
[1753244703440,0.01490944,118820.0,118810.0,0.66133917]
[1753244704092,0.02332517,118820.0,118810.0,0.66133917]
[1753244704761,0.02332517,118820.0,118810.0,0.53069917]
[1753244704970,0.03174104,118820.0,118810.0,0.86325917]
[1753244705524,0.04015698,118820.0,118810.0,0.86325917]
[1753244705725,0.04015698,118820.0,118810.0,0.84185917]
[1753244706180,0.03174104,118820.0,118810.0,0.84185917]
[1753244706586,0.02332517,118820.0,118810.0,0.84185917]
[1753244706760,0.20847896,118820.0,118810.0,0.84185931]
[1753244706963,0.21499854,118820.0,118810.0,0.79810636]
[1753244707295,0.26009854,118820.0,118810.0,0.79810636]
[1753244707435,0.26009854,118820.0,118810.0,0.52364936]
[1753244707646,0.26009854,118820.0,118810.0,0.80652301]
[1753244707908,0.20658281,118820.0,118810.0,0.82007931]
[1753244708310,0.04667649,118820.0,118810.0,0.82849561]
[1753244708500,0.05718994,118820.0,118810.0,0.82849561]
[1753244709171,0.22551177,118820.0,118810.0,0.82849561]
[1753244709382,0.22341434,118820.0,118810.0,0.82849561]
[1753244710165,0.22341434,118820.0,118810.0,0.82007945]
[1753244710346,0.002,118820.0,118810.0,0.84167945]
[1753244710549,0.01041552,118820.0,118810.0,0.87239575]
[1753244710761,0.01883125,118820.0,118810.0,0.87239575]
[1753244711073,0.02724712,118820.0,118810.0,0.53991575]
[1753244711291,0.02724712,118820.0,118810.0,0.84997575]
[1753244711741,0.0272467,118820.0,118810.0,0.87197575]
[1753244713375,0.01041545,118820.0,118810.0,0.87197575]
[1753244713634,0.01883104,118820.0,118810.0,0.87197575]
[1753244713850,0.002,118820.0,118810.0,1.29645305]
[1753244714306,0.002,118820.0,118810.0,1.32170105]
[1753244714903,0.001,118820.0,118810.0,1.31770105]
[1753244715093,0.003,118830.0,118820.0,0.23856924]
[1753244715334,0.003,118830.0,118820.0,0.65391289]
[1753244715578,0.01982998,118830.0,118820.0,0.5181673]
[1753244715812,0.02824522,118830.0,118820.0,0.65702289]
[1753244716281,0.01982998,118830.0,118820.0,0.65902289]
[1753244717150,0.0208299,118830.0,118820.0,0.66202289]
[1753244717363,0.02924507,118830.0,118820.0,0.66202289]
[1753244717575,0.0208299,118830.0,118820.0,0.66202289]
[1753244718452,0.01241488,118830.0,118820.0,0.66202289]
[1753244718661,0.01241481,118830.0,118820.0,0.66202289]
[1753244718861,0.004,118830.0,118820.0,0.66202289]
[1753244720659,0.01241474,118830.0,118820.0,0.66202289]
[1753244721921,0.004,118830.0,118820.0,0.66202289]
[1753244722142,0.01241474,118830.0,118820.0,0.66202289]
[1753244722482,0.004,118830.0,118820.0,0.66202289]
[1753244722742,0.01241474,118830.0,118820.0,0.66202289]
[1753244722990,0.004,118830.0,118820.0,1.00202289]
[1753244724524,0.004,118830.0,118820.0,1.08650019]
[1753244726807,0.004,118830.0,118820.0,1.11174619]
[1753244727738,0.004,118830.0,118820.0,1.11154619]
[1753244728017,0.004,118830.0,118820.0,1.11146619]
[1753244729919,0.00350051,118830.0,118820.0,1.11146619]
[1753244733735,0.00350051,118830.0,118820.0,0.98130619]
[1753244733936,0.00350051,118830.0,118820.0,1.11138619]
[1753244740081,0.00350051,118830.0,118820.0,1.31302619]
[1753244742290,0.00350051,118830.0,118820.0,1.03015254]
[1753244742513,0.00350051,118830.0,118820.0,1.31302619]
[1753244742723,0.00350051,118830.0,118820.0,1.32150655]
[1753244745557,0.00350051,118830.0,118820.0,1.6043802]
[1753244746635,0.00350051,118830.0,118820.0,1.6023802]
[1753244746844,0.00250051,118830.0,118820.0,1.5993802]
[1753244747024,0.00350051,118830.0,118820.0,1.6113802]
[1753244747208,0.00450051,118830.0,118820.0,1.6113802]
[1753244748785,1e-08,118830.0,118820.0,1.6613802]
[1753244756769,1e-08,118830.0,118820.0,1.6609802]
[1753244767469,1e-08,118830.0,118820.0,1.6609002]
[1753244768410,1e-08,118830.0,118820.0,1.35472655]
[1753244768692,1e-08,118830.0,118820.0,1.37792655]
[1753244769779,1e-08,118830.0,118820.0,1.30472655]
[1753244769993,0.00198001,118830.0,118820.0,1.28302655]
[1753244770216,0.04778001,118830.0,118820.0,1.27788655]
[1753244770438,0.04778001,118830.0,118820.0,1.25264055]
[1753244770682,0.04778001,118830.0,118820.0,1.27788555]
[1753244771165,0.04778001,118830.0,118820.0,1.25264055]
[1753244773016,0.04778001,118830.0,118820.0,1.25565055]
[1753244774616,1e-08,118830.0,118820.0,1.25765055]
[1753244781198,0.04698001,118830.0,118820.0,1.25264055]
[1753244782159,0.04698001,118830.0,118820.0,1.27788555]
[1753244783474,0.04698001,118830.0,118820.0,1.28089555]
[1753244784195,0.04698001,118830.0,118820.0,0.9980219]
[1753244784419,0.04698001,118830.0,118820.0,1.28089555]
[1753244785940,0.04698001,118830.0,118820.0,1.15165555]
[1753244786127,0.04698001,118830.0,118820.0,1.28089555]
[1753244787643,0.02558001,118830.0,118820.0,1.28290555]
[1753244788456,0.00198001,118830.0,118820.0,1.28290555]
[1753244789621,1e-08,118830.0,118820.0,1.28290555]
[1753244791456,1e-08,118830.0,118820.0,1.0000319]
[1753244791672,1e-08,118830.0,118820.0,1.28290555]
[1753244791873,0.06222827,118840.0,118830.0,0.53355295]
[1753244792077,0.06421827,118840.0,118830.0,0.9456666]
[1753244792371,0.0558041,118840.0,118830.0,0.9456666]
[1753244793335,0.0568041,118840.0,118830.0,0.9496666]
[1753244793630,0.06521827,118840.0,118830.0,0.9496666]
[1753244794768,0.06621827,118840.0,118830.0,0.9526666]
[1753244798430,0.07463259,118840.0,118830.0,0.9526666]
[1753244798648,0.06621827,118840.0,118830.0,0.9526666]
[1753244798901,0.07463259,118840.0,118830.0,0.9526666]
[1753244799122,0.06621827,118840.0,118830.0,0.9526666]
[1753244799776,0.07463259,118840.0,118830.0,0.9526666]
[1753244800409,0.06621827,118840.0,118830.0,0.9526666]
[1753244800760,0.07463259,118840.0,118830.0,0.9526666]
[1753244800962,0.24506695,118840.0,118830.0,0.347]
[1753244801193,0.23665263,118840.0,118830.0,0.1362]
[1753244801828,0.23565263,118840.0,118830.0,0.4732]
[1753244802055,0.23465263,118840.0,118830.0,0.4692]
[1753244802279,0.23565263,118840.0,118830.0,0.65933821]
[1753244802484,0.23565263,118840.0,118830.0,0.95062696]
[1753244802916,0.23565263,118840.0,118830.0,0.94221186]
[1753244803542,0.23565263,118840.0,118830.0,0.95062703]
[1753244803993,0.23565263,118840.0,118830.0,0.94221186]
[1753244804324,0.23565263,118840.0,118830.0,0.93379662]
[1753244805089,0.22723817,118840.0,118830.0,0.93379662]
[1753244806412,0.22723817,118840.0,118830.0,0.94221186]
[1753244807089,0.22723817,118840.0,118830.0,0.65933821]
[1753244807304,0.22723817,118840.0,118830.0,0.94221186]
[1753244811393,0.22723817,118840.0,118830.0,0.93379662]
[1753244811611,0.22723817,118840.0,118830.0,0.75707365]
[1753244814606,0.22509817,118840.0,118830.0,0.75707365]
[1753244815649,0.22509817,118840.0,118830.0,0.93379662]
[1753244816567,0.22509817,118840.0,118830.0,0.92538131]
[1753244817851,0.22509817,118840.0,118830.0,0.93379669]
[1753244818488,0.22509817,118840.0,118830.0,0.94221186]
[1753244818703,0.22509817,118840.0,118830.0,0.94527186]
[1753244820665,0.2166835,118840.0,118830.0,0.95368696]
[1753244820890,0.21161256,118840.0,118830.0,0.96210191]
[1753244821108,0.22844148,118840.0,118830.0,0.96210191]
[1753244821585,0.05173331,118840.0,118830.0,0.96421191]
[1753244821792,0.001,118840.0,118830.0,1.01962679]
[1753244822047,0.00941403,118840.0,118830.0,1.01962679]
[1753244822271,0.001,118840.0,118830.0,1.01962679]
[1753244824275,0.001,118840.0,118830.0,0.73675314]
[1753244824544,0.001,118840.0,118830.0,1.01962679]
[1753244826733,0.001,118840.0,118830.0,0.73675314]
[1753244826957,0.03465713,118840.0,118830.0,1.01962679]
[1753244827185,0.03465713,118840.0,118830.0,0.97262679]
[1753244827860,0.03465706,118840.0,118830.0,0.97262679]
[1753244828100,0.04307159,118840.0,118830.0,0.68975314]
[1753244828347,0.04307159,118840.0,118830.0,0.97262679]
[1753244828567,0.0262426,118840.0,118830.0,0.97262679]
[1753244828790,0.0262426,118840.0,118830.0,0.99432679]
[1753244829047,0.0178282,118840.0,118830.0,0.99432679]
[1753244829306,0.00941403,118840.0,118830.0,0.99432679]
[1753244829522,0.001,118840.0,118830.0,1.01622679]
[1753244830235,0.0094141,118840.0,118830.0,1.01622679]
[1753244830682,0.001,118840.0,118830.0,1.01622679]
[1753244831481,0.0094141,118840.0,118830.0,1.01622679]
[1753244831956,0.01782827,118840.0,118830.0,0.73335314]
[1753244832189,0.01782827,118840.0,118830.0,1.01622679]
[1753244832909,0.0094141,118840.0,118830.0,1.01622679]
[1753244834202,0.001,118840.0,118830.0,1.01622679]
[1753244835082,0.00941403,118840.0,118830.0,0.73335314]
[1753244835298,0.00941403,118840.0,118830.0,1.01622679]
[1753244835511,0.0178282,118840.0,118830.0,1.01622679]
[1753244835739,0.00941403,118840.0,118830.0,1.01622679]
[1753244837114,0.0178282,118840.0,118830.0,1.01622679]
[1753244837330,0.00941403,118840.0,118830.0,1.37022408]
[1753244838320,0.00941403,118840.0,118830.0,0.73335314]
[1753244838553,0.00941403,118840.0,118830.0,1.37022408]
[1753244840735,0.0178282,118840.0,118830.0,1.37022408]
[1753244841129,0.00941403,118840.0,118830.0,1.37022408]
[1753244841349,0.0178282,118840.0,118830.0,1.37022408]
[1753244841560,0.00941403,118840.0,118830.0,1.37022408]
[1753244842727,0.0178282,118840.0,118830.0,1.37022408]
[1753244842932,0.00941403,118840.0,118830.0,1.37022408]
[1753244843139,0.55343782,118840.0,118830.0,0.345]
[1753244843371,0.23714235,118840.0,118830.0,0.345]
[1753244843572,0.23714235,118840.0,118830.0,0.79255547]
[1753244843979,0.25459137,118840.0,118830.0,0.345]
[1753244844181,0.25459137,118840.0,118830.0,0.47412]
[1753244845189,0.25359137,118840.0,118830.0,0.47112]
[1753244845391,0.25459137,118840.0,118830.0,0.47312]
[1753244846236,0.25459137,118840.0,118830.0,0.47112]
[1753244846840,0.65750414,118840.0,118830.0,0.47312]
[1753244847351,0.33906867,118840.0,118830.0,0.47312]
[1753244849832,0.34755719,118840.0,118830.0,0.47312]
[1753244850891,0.33906867,118840.0,118830.0,0.47312]
[1753244865112,0.33692867,118840.0,118830.0,0.47312]
[1753244873807,0.31342867,118840.0,118830.0,0.47312]
[1753244874561,0.29002867,118840.0,118830.0,0.47832]
[1753244875942,0.29002867,118840.0,118830.0,0.47621]
[1753244877607,0.03527744,118840.0,118830.0,1.34642513]
[1753244877814,0.22040014,118840.0,118830.0,1.35484001]
[1753244878021,0.22040014,118840.0,118830.0,1.34642513]
[1753244878228,0.22040014,118840.0,118830.0,1.35484015]
[1753244880463,0.22040014,118840.0,118830.0,0.71767309]
[1753244880647,0.22040014,118840.0,118830.0,1.35484015]
[1753244881094,0.22040014,118840.0,118830.0,1.03625662]
[1753244881994,0.22040014,118840.0,118830.0,1.35484015]
[1753244882186,0.001,118840.0,118830.0,1.36325503]
[1753244882335,0.0094141,118840.0,118830.0,0.72608797]
[1753244882554,0.0094141,118840.0,118830.0,1.36325503]
[1753244882763,0.01782835,118840.0,118830.0,1.36325503]
[1753244883197,0.02624274,118840.0,118830.0,1.36325503]
[1753244883402,0.01782835,118840.0,118830.0,1.36325503]
[1753244883716,0.02624274,118840.0,118830.0,1.36325503]
[1753244883889,0.03465727,118840.0,118830.0,1.36325503]
[1753244884088,0.02624274,118840.0,118830.0,1.36325503]
[1753244886354,0.01782835,118840.0,118830.0,1.36325503]
[1753244886820,0.02624267,118840.0,118830.0,1.36325503]
[1753244891979,0.01782827,118840.0,118830.0,1.36325503]
[1753244892188,0.02624259,118840.0,118830.0,1.36325503]
[1753244893784,0.01782827,118840.0,118830.0,1.36325503]
[1753244894213,0.02624259,118840.0,118830.0,1.36325503]
[1753244894430,0.01782827,118840.0,118830.0,1.36325503]
[1753244894871,0.001,118840.0,118830.0,1.36325503]
[1753244895087,0.00941403,118840.0,118830.0,1.36325503]
[1753244895292,0.001,118840.0,118830.0,1.36325503]
[1753244895498,0.00941403,118840.0,118830.0,1.36325503]
[1753244896440,0.01782828,118840.0,118830.0,1.36325503]
[1753244897814,0.0178282,118840.0,118830.0,1.36325503]
[1753244897976,0.00941403,118840.0,118830.0,1.36325503]
[1753244898179,0.00941403,118840.0,118830.0,0.72608797]
[1753244898442,0.001,118840.0,118830.0,1.36325503]
[1753244899218,0.0094141,118840.0,118830.0,1.36325503]
[1753244899402,0.001,118840.0,118830.0,1.36325503]